Workbook

Sheet App.2-FA Proposed REG Invest.
F1: File Number: | G1: EB-2014-0083
F2: Exhibit: | G2: 2
F3: Tab: | G3: 7
F4: Schedule: | G4: 1
F5: Page: | G5: 1 of 2
F7: Date: | G7: 2014-04-25
A9: Appendix 2-FA
A10: Renewable Generation Connection Investment Summary (over the rate setting period)
A12: Enter the details of the Renewable Generation Connection projects as described in Section 2.5.2.5 of the Filing Requirements.
A13: All costs entered on this page will be transferred to the appropriate cells in the appendices that follow.
A14: For Part A, Renewable Enabling Improvements (REI), these amounts will be transferred to Appendix 2 - FB
A15: For Part B, Expansions, these amounts will be transferred to Appendix 2 - FC
A17: If there are more than five projects proposed to be in-service in a certain year, please amend the tables below and ensure that the formulae for the Total Amounts in any given rate year are updated.
A18: Based on the current methodology and allocation, amounts allocated represent 6% for REI Connection Investments and 17% for Expansion Investments. (pg 15, EB-2009-0349)
A21: Part A
A22: REI Investments (Direct Benefit at 6%) | C22: 2015 | D22: 2016 | E22: 2017 | F22: 2018 | G22: 2019
A23: Project 1
A24: Name: OPA FIT/MicroFIT Program Management
A25: Capital Costs
A26: OM&A (Start-Up) | C26: 0 | D26: 0 | E26: 0 | F26: 0 | G26: 0
A27: OM&A (Ongoing) | C27: 117500 | D27: 122500 | E27: 110000 | F27: 110000 | G27: 110000
A29: Project 2
A30: Name: Maintenance of Connected REG Infrastructure
A31: Capital Costs | C31: 0 | D31: 0 | E31: 0 | F31: 0 | G31: 0
A32: OM&A (Start-Up) | C32: 0 | D32: 0 | E32: 0 | F32: 0 | G32: 0
A33: OM&A (Ongoing) | C33: 70000 | D33: 76000 | E33: 82000 | F33: 88000 | G33: 94000
A35: Project 3
A36: Name: Remote Monitoring and Control of REG
A37: Capital Costs | C37: 180000 | D37: 180000 | E37: 180000 | F37: 180000 | G37: 180000
A38: OM&A (Start-Up) | C38: =0.05*C37 -> 9000 | D38: =0.05*D37 -> 9000 | E38: 9000 | F38: 9000 | G38: 9000
A39: OM&A (Ongoing)
A41: Project 4
A42: Name: REI Connection Project
A43: Capital Costs | C43: 0 | D43: 0 | E43: 0 | F43: 0 | G43: 0
A44: OM&A (Start-Up) | C44: 0 | D44: 0 | E44: 0 | F44: 0 | G44: 0
A45: OM&A (Ongoing) | C45: 0 | D45: 0 | E45: 0 | F45: 0 | G45: 0
A47: Project 5
A48: Name: REI Connection Project
A49: Capital Costs | C49: 0 | D49: 0 | E49: 0 | F49: 0 | G49: 0
A50: OM&A (Start-Up) | C50: 0 | D50: 0 | E50: 0 | F50: 0 | G50: 0
A51: OM&A (Ongoing) | C51: 0 | D51: 0 | E51: 0 | F51: 0 | G51: 0
A53: Total Capital Costs | C53: =SUM(C49,C43,C37,C31,C25) -> 180000 | D53: =SUM(D49,D43,D37,D31,D25) -> 180000 | E53: 180000 | F53: 180000 | G53: 180000
A54: Total OM&A (Start-Up) | C54: =SUM(C50,C44,C38,C32,C26) -> 9000 | D54: 9000 | E54: 9000 | F54: 9000 | G54: 9000
A55: Total OM&A (Ongoing) | C55: =SUM(C51,C45,C39,C33,C27) -> 187500 | D55: 198500 | E55: 192000 | F55: 198000 | G55: 204000
F57: File Number: | G57: EB-2014-0083
F58: Exhibit: | G58: 2
F59: Tab: | G59: 7
F60: Schedule: | G60: 1
F61: Page: | G61: 2 of 2
F63: Date: | G63: 2014-04-25
A65: Appendix 2-FA
A66: Renewable Generation Connection Investment Summary (over the rate setting period)
A69: Part B
A70: Expansion Investments (Direct Benefit at 17%) | C70: 2015 | D70: 2016 | E70: 2017 | F70: 2018 | G70: 2019
A71: Project 1
A72: Name: Transformer Replacement
A73: Capital Costs | C73: 60000 | D73: 60000 | E73: 60000 | F73: 60000 | G73: 60000
A74: OM&A (Start-Up) | C74: =0.1*C73 -> 6000 | D74: =0.1*D73 -> 6000 | E74: 6000 | F74: 6000 | G74: 6000
A75: OM&A (Ongoing) | C75: 0 | D75: 0 | E75: 0 | F75: 0 | G75: 0
A77: Project 2
A78: Name: Rebuilding Existing Line
A79: Capital Costs | C79: 38000 | D79: 10000 | E79: 12000 | F79: 14000 | G79: 16000
A80: OM&A (Start-Up) | C80: =0.1*C79 -> 3800 | D80: =0.1*D79 -> 1000 | E80: 1200 | F80: 1400 | G80: 1600
A81: OM&A (Ongoing) | C81: 0 | D81: 0 | E81: 0 | F81: 0 | G81: 0
A83: Project 3
A84: Name: Expansion Connection Project
A85: Capital Costs | C85: 0 | D85: 0 | E85: 0 | F85: 0 | G85: 0
A86: OM&A (Start-Up) | C86: 0 | D86: 0 | E86: 0 | F86: 0 | G86: 0
A87: OM&A (Ongoing) | C87: 0 | D87: 0 | E87: 0 | F87: 0 | G87: 0
A89: Project 4
A90: Name: Expansion Connection Project
A91: Capital Costs | C91: 0 | D91: 0 | E91: 0 | F91: 0 | G91: 0
A92: OM&A (Start-Up) | C92: 0 | D92: 0 | E92: 0 | F92: 0 | G92: 0
A93: OM&A (Ongoing) | C93: 0 | D93: 0 | E93: 0 | F93: 0 | G93: 0
A95: Project 5
A96: Name: Expansion Connection Project
A97: Capital Costs | C97: 0 | D97: 0 | E97: 0 | F97: 0 | G97: 0
A98: OM&A (Start-Up) | C98: 0 | D98: 0 | E98: 0 | F98: 0 | G98: 0
A99: OM&A (Ongoing) | C99: 0 | D99: 0 | E99: 0 | F99: 0 | G99: 0
A101: Total Capital Costs | C101: =SUM(C97,C91,C85,C79,C73) -> 98000 | D101: =SUM(D97,D91,D85,D79,D73) -> 70000 | E101: 72000 | F101: 74000 | G101: 76000
A102: Total OM&A (Start-Up) | C102: =SUM(C98,C92,C86,C80,C74) -> 9800 | D102: 7000 | E102: 7200 | F102: 7400 | G102: 7600
A103: Total OM&A (Ongoing) | C103: =SUM(C99,C93,C87,C81,C75) -> 0 | D103: 0 | E103: 0 | F103: 0 | G103: 0

Sheet App.2-FB Calc of REG Improvemnt
Q1: File Number: | R1: EB-2014-0083
Q2: Exhibit: | R2: 2
Q3: Tab: | R3: 7
Q4: Schedule: | R4: 1
Q5: Page: | R5: 1 of 2
Q7: Date: | R7: 2014-04-25
A9: Appendix 2-FB
A10: Calculation of Renewable Generation Connection Direct Benefits/Provincial Amount: Renewable Enabling Improvement Investments
A12: This table will calculate the distributor/provincial shares of the investments entered in Part A of Appendix 2-FA.
A13: Enter values in green shaded cells: WCA percentage, debt percentages, interest rates, kWh, tax rates, amortization period, CCA Class and percentage.
A14: Rate Riders are not calculated for Test Year as these assets and costs are already in the distributor's rate base/revenue requirement.
D16: 2015Test Year | G16: 2016 | J16: 2017 | K16: 2016 | M16: 2018 | P16: 2019
E17: Direct Benefit | F17: Provincial | H17: Direct Benefit | I17: Provincial | K17: Direct Benefit | L17: Provincial | N17: Direct Benefit | O17: Provincial | Q17: Direct Benefit | R17: Provincial
D18: Total | E18: 0.06 | F18: 0.94 | G18: Total | H18: 0.06 | I18: 0.94 | J18: Total | K18: 0.06 | L18: 0.94 | M18: Total | N18: 0.06 | O18: 0.94 | P18: Total | Q18: 0.06 | R18: 0.94
A19: Net Fixed Assets (average) | D19: =D91 -> 87000 | E19: =D19*E18 -> 5220 | F19: =D19*F18 -> 81780 | G19: =E91 -> 255000 | H19: =G19*H18 -> 15300 | I19: =G19*I18 -> 239700 | J19: =F91 -> 411000 | K19: =J19*K18 -> 24660 | L19: =J19*L18 -> 386340 | M19: =G91 -> 555000 | N19: =M19*N18 -> 33300 | O19: =M19*O18 -> 521700 | P19: =H91 -> 687000 | Q19: =P19*Q18 -> 41220 | R19: =P19*R18 -> 645780
A20: Incremental OM&A (on-going, N/A for Provincial Recovery) | D20: ='App.2-FA Proposed REG Invest.'!C55 -> 187500 | E20: =D20 -> 187500 | G20: ='App.2-FA Proposed REG Invest.'!D55 -> 198500 | H20: =G20 -> 198500 | J20: ='App.2-FA Proposed REG Invest.'!E55 -> 192000 | K20: =J20 -> 192000 | M20: ='App.2-FA Proposed REG Invest.'!F55 -> 198000 | N20: =M20 -> 198000 | P20: ='App.2-FA Proposed REG Invest.'!G55 -> 204000 | Q20: =P20 -> 204000
A21: Incremental OM&A (start-up, applicable for Provincial Recovery) | D21: ='App.2-FA Proposed REG Invest.'!C54 -> 9000 | E21: =D21*E18 -> 540 | F21: =D21*F18 -> 8460 | G21: ='App.2-FA Proposed REG Invest.'!D54 -> 9000 | H21: =G21*H18 -> 540 | I21: =G21*I18 -> 8460 | J21: ='App.2-FA Proposed REG Invest.'!E54 -> 9000 | K21: =J21*K18 -> 540 | L21: =J21*L18 -> 8460 | M21: ='App.2-FA Proposed REG Invest.'!F54 -> 9000 | N21: =M21*N18 -> 540 | O21: =M21*O18 -> 8460 | P21: ='App.2-FA Proposed REG Invest.'!G54 -> 9000 | Q21: =P21*Q18 -> 540 | R21: =P21*R18 -> 8460
A22: WCA | B22: 0.13 | E22: =(E20+E21)*$B$22 -> 24445.2 | F22: =F21*$B$22 -> 1099.8 | H22: =(H20+H21)*$B$22 -> 25875.2 | I22: =I21*$B$22 -> 1099.8 | K22: =(K20+K21)*$B$22 -> 25030.2 | L22: =L21*$B$22 -> 1099.8 | N22: =(N20+N21)*$B$22 -> 25810.2 | O22: =O21*$B$22 -> 1099.8 | Q22: =(Q20+Q21)*$B$22 -> 26590.2 | R22: =R21*$B$22 -> 1099.8
A23: Rate Base | E23: =SUM(E19+E22) -> 29665.2 | F23: =SUM(F19+F22) -> 82879.8 | H23: =SUM(H19+H22) -> 41175.2 | I23: =SUM(I19+I22) -> 240799.8 | K23: =SUM(K19+K22) -> 49690.2 | L23: =SUM(L19+L22) -> 387439.8 | N23: =SUM(N19+N22) -> 59110.2 | O23: =SUM(O19+O22) -> 522799.8 | Q23: =SUM(Q19+Q22) -> 67810.2 | R23: =SUM(R19+R22) -> 646879.8
D24: =+D19/25/2 -> 1740
A26: Deemed ST Debt | B26: 0.04 | E26: =E23*$B$26 -> 1186.608 | F26: =F23*$B$26 -> 3315.192 | H26: =H23*$B$26 -> 1647.008 | I26: =I23*$B$26 -> 9631.992 | K26: =K23*$B$26 -> 1987.608 | L26: =L23*$B$26 -> 15497.592 | N26: =N23*$B$26 -> 2364.408 | O26: =O23*$B$26 -> 20911.992 | Q26: =Q23*$B$26 -> 2712.408 | R26: =R23*$B$26 -> 25875.192
A27: Deemed LT Debt | B27: 0.56 | E27: =E23*$B$27 -> 16612.512 | F27: =F23*$B$27 -> 46412.688 | H27: =H23*$B$27 -> 23058.112 | I27: =I23*$B$27 -> 134847.888 | K27: =K23*$B$27 -> 27826.512 | L27: =L23*$B$27 -> 216966.288 | N27: =N23*$B$27 -> 33101.712 | O27: =O23*$B$27 -> 292767.888 | Q27: =Q23*$B$27 -> 37973.712 | R27: =R23*$B$27 -> 362252.688
A28: Deemed Equity | B28: 0.4 | E28: =E23*$B$28 -> 11866.08 | F28: =F23*$B$28 -> 33151.92 | H28: =H23*$B$28 -> 16470.08 | I28: =I23*$B$28 -> 96319.92 | K28: =K23*$B$28 -> 19876.08 | L28: =L23*$B$28 -> 154975.92 | N28: =N23*$B$28 -> 23644.08 | O28: =O23*$B$28 -> 209119.92 | Q28: =Q23*$B$28 -> 27124.08 | R28: =R23*$B$28 -> 258751.92
A30: ST Interest | B30: 0.0211 | E30: =E26*$B30 -> 25.0374288 | F30: =F26*$B30 -> 69.9505512 | H30: =H26*$B30 -> 34.7518688 | I30: =I26*$B30 -> 203.2350312 | K30: =K26*$B30 -> 41.9385288 | L30: =L26*$B30 -> 326.9991912 | N30: =N26*$B30 -> 49.8890088 | O30: =O26*$B30 -> 441.2430312 | Q30: =Q26*$B30 -> 57.2318088 | R30: =R26*$B30 -> 545.9665512
A31: LT Interest | B31: 0.06115320665 | E31: =E27*$B31 -> 1015.908379 | F31: 2838.2847 | H31: =H27*$B31 -> 1410.077488 | I31: 8246.380761 | K31: =K27*$B31 -> 1701.680439 | L31: 13268.18425 | N31: =N27*$B31 -> 2024.275834 | O31: 17903.69516 | Q31: =Q27*$B31 -> 2322.214257 | R31: 22152.91349
A32: ROE | B32: 0.0971 | E32: 1152.196368 | F32: 3219.051432 | H32: 1599.244768 | I32: 9352.664232 | K32: 1929.967368 | L32: 15048.16183 | N32: 2295.840168 | O32: 20305.54423 | Q32: 2633.748168 | R32: 25124.81143
A33: Cost of Capital Total | E33: =SUM(E30:E32) -> 2193.142176 | F33: =SUM(F30:F32) -> 6127.286684 | H33: =SUM(H30:H32) -> 3044.074125 | I33: =SUM(I30:I32) -> 17802.28002 | K33: =SUM(K30:K32) -> 3673.586336 | L33: =SUM(L30:L32) -> 28643.34527 | N33: =SUM(N30:N32) -> 4370.005011 | O33: =SUM(O30:O32) -> 38650.48242 | Q33: =SUM(Q30:Q32) -> 5013.194234 | R33: =SUM(R30:R32) -> 47823.69147
A35: OM&A | E35: =E20+E21 -> 188040 | F35: =F21 -> 8460 | H35: =H20+H21 -> 199040 | I35: =I21 -> 8460 | K35: =K20+K21 -> 192540 | L35: =L21 -> 8460 | N35: =N20+N21 -> 198540 | O35: =O21 -> 8460 | Q35: =Q20+Q21 -> 204540 | R35: =R21 -> 8460
A36: Amortization | D36: =D86 -> 6000 | E36: =D36*E$18 -> 360 | F36: =D36*F$18 -> 5640 | G36: =E85+E86 -> 18000 | H36: =G36*H$18 -> 1080 | I36: =G36*I$18 -> 16920 | J36: =F85+F86 -> 30000 | K36: =J36*K$18 -> 1800 | L36: =J36*L$18 -> 28200 | M36: =G85+G86 -> 42000 | N36: =M36*N$18 -> 2520 | O36: =M36*O$18 -> 39480 | P36: =H85+H86 -> 54000 | Q36: =P36*Q$18 -> 3240 | R36: =P36*R$18 -> 50760
A37: Grossed-up PILs | E37: =E63 -> 389.4585544 | F37: =F63 -> 753.9165027 | H37: =H63 -> 511.1813109 | I37: =I63 -> 2347.180437 | K37: =K63 -> 614.8874565 | L37: =L63 -> 4157.293548 | N37: =N63 -> 753.2768684 | O37: =O63 -> 6154.271107 | Q37: =Q63 -> 901.8329932 | R37: =R63 -> 8310.527168
A39: Revenue Requirement | E39: =SUM(E33:E37) -> 190982.6007 | F39: =SUM(F33:F37) -> 20981.20319 | H39: =SUM(H33:H37) -> 203675.2554 | I39: =SUM(I33:I37) -> 45529.46046 | K39: =SUM(K33:K37) -> 198628.4738 | L39: =SUM(L33:L37) -> 69460.63882 | N39: =SUM(N33:N37) -> 206183.2819 | O39: =SUM(O33:O37) -> 92744.75353 | Q39: =SUM(Q33:Q37) -> 213695.0272 | R39: =SUM(R33:R37) -> 115354.2186
A42: Provincial Rate Protection | F42: =F39 -> 20981.20319 | I42: =I39 -> 45529.46046 | L42: =L39 -> 69460.63882 | O42: =O39 -> 92744.75353 | R42: =R39 -> 115354.2186
A44: Monthly Amount Paid by IESO | F44: =F42/12 -> 1748.433599 | I44: =I42/12 -> 3794.121705 | L44: =L42/12 -> 5788.386568 | O44: =O42/12 -> 7728.72946 | R44: =R42/12 -> 9612.851553
A46: Note 1: The difference between the actual costs of approved eligible investments and revenue received from the IESO should be recorded in a variance account. The Board regulatory accounting guidance regarding a variance account either in an individual proceeding or on a generic basis.
A47: Note 2: For the 2014 Test Year, Costs and Revenues of the Direct Benefit are to be included in the test year applicant Rate Base and Revenues.
A49: PILs Calculation
E50: 2015 | H50: 2016 | K50: 2017 | N50: 2018 | Q50: 2019
A51: Income Tax | E51: Direct Benefit | F51: Provincial | H51: Direct Benefit | I51: Provincial | K51: Direct Benefit | L51: Provincial | N51: Direct Benefit | O51: Provincial | Q51: Direct Benefit | R51: Provincial
M52: Total | P52: Total
A53: Net Income - ROE on Rate Base | E53: =E32 -> 1152.196368 | F53: =F32 -> 3219.051432 | H53: =H32 -> 1599.244768 | I53: =I32 -> 9352.664232 | K53: =K32 -> 1929.967368 | L53: =L32 -> 15048.16183 | N53: =N32 -> 2295.840168 | O53: =O32 -> 20305.54423 | Q53: =Q32 -> 2633.748168 | R53: =R32 -> 25124.81143
A54: Amortization (6% DB and 94% P) | E54: =E36 -> 360 | F54: =F36 -> 5640 | H54: =H36 -> 1080 | I54: =I36 -> 16920 | K54: =K36 -> 1800 | L54: =L36 -> 28200 | N54: =N36 -> 2520 | O54: =O36 -> 39480 | Q54: =Q36 -> 3240 | R54: =R36 -> 50760
A55: CCA (6% DB and 94% P) | E55: =-D103*E$18 -> -432 | F55: =-D103*F$18 -> -6768 | H55: =-E103*H$18 -> -1261.44 | I55: =-E103*I$18 -> -19762.56 | K55: =-F103*K$18 -> -2024.5248 | L55: =-F103*L$18 -> -31717.5552 | N55: =-G103*N$18 -> -2726.562816 | O55: =-G103*O$18 -> -42716.15078 | Q55: =-H103*Q$18 -> -3372.437791 | R55: =-H103*R$18 -> -52834.85872
A56: Taxable income | E56: =SUM(E53:E55) -> 1080.196368 | F56: =SUM(F53:F55) -> 2091.051432 | H56: =SUM(H53:H55) -> 1417.804768 | I56: =SUM(I53:I55) -> 6510.104232 | K56: =SUM(K53:K55) -> 1705.442568 | L56: =SUM(L53:L55) -> 11530.60663 | N56: =SUM(N53:N55) -> 2089.277352 | O56: =SUM(O53:O55) -> 17069.39345 | Q56: =SUM(Q53:Q55) -> 2501.310377 | R56: =SUM(R53:R55) -> 23049.95271
A58: Tax Rate (to be entered) | E58: 0.265 | F58: 0.265 | H58: 0.265 | I58: 0.265 | K58: 0.265 | L58: 0.265 | N58: 0.265 | O58: 0.265 | Q58: 0.265 | R58: 0.265
A60: Income Taxes Payable | E60: =E56*E58 -> 286.2520375 | F60: =F56*F58 -> 554.1286295 | H60: =H56*H58 -> 375.7182635 | I60: =I56*I58 -> 1725.177621 | K60: =K56*K58 -> 451.9422805 | L60: =L56*L58 -> 3055.610757 | N60: =N56*N58 -> 553.6584983 | O60: =O56*O58 -> 4523.389264 | Q60: =Q56*Q58 -> 662.84725 | R60: =R56*R58 -> 6108.237468
A61: Gross Up
A62: Income Taxes Payable | E62: =E60/(1-E58) -> 389.4585544 | F62: =F60/(1-F58) -> 753.9165027 | H62: =H60/(1-H58) -> 511.1813109 | I62: =I60/(1-I58) -> 2347.180437 | K62: =K60/(1-K58) -> 614.8874565 | L62: =L60/(1-L58) -> 4157.293548 | N62: =N60/(1-N58) -> 753.2768684 | O62: =O60/(1-O58) -> 6154.271107 | Q62: =Q60/(1-Q58) -> 901.8329932 | R62: =R60/(1-R58) -> 8310.527168
A63: Grossed Up PILs | E63: =SUM(E62:E62) -> 389.4585544 | F63: =SUM(F62:F62) -> 753.9165027 | H63: =SUM(H62:H62) -> 511.1813109 | I63: =SUM(I62:I62) -> 2347.180437 | K63: =SUM(K62:K62) -> 614.8874565 | L63: =SUM(L62:L62) -> 4157.293548 | N63: =SUM(N62:N62) -> 753.2768684 | O63: =SUM(O62:O62) -> 6154.271107 | Q63: =SUM(Q62:Q62) -> 901.8329932 | R63: =SUM(R62:R62) -> 8310.527168
Q66: File Number: | R66: EB-2014-0083
Q67: Exhibit: | R67: 2
Q68: Tab: | R68: 7
Q69: Schedule: | R69: 1
Q70: Page: | R70: 2 of 2
Q72: Date: | R72: 2014-04-25
A74: Appendix 2-FB
A75: Calculation of Renewable Generation Connection Direct Benefits/Provincial Amount: Renewable Enabling Improvement Investments
D77: 2015 | E77: 2016 | F77: 2017 | G77: 2018 | H77: 2019
A78: Net Fixed Assets | D78: =(180000/25)/2 -> 3600
B79: Enter applicable amortization in years: | C79: 15
A80: Opening Gross Fixed Assets | E80: =D82 -> 180000 | F80: =E82 -> 360000 | G80: =F82 -> 540000 | H80: =G82 -> 720000
A81: Gross Capital Additions | D81: ='App.2-FA Proposed REG Invest.'!C53 -> 180000 | E81: ='App.2-FA Proposed REG Invest.'!D53 -> 180000 | F81: ='App.2-FA Proposed REG Invest.'!E53 -> 180000 | G81: ='App.2-FA Proposed REG Invest.'!F53 -> 180000 | H81: ='App.2-FA Proposed REG Invest.'!G53 -> 180000
A82: Closing Gross Fixed Assets | D82: =SUM(D80:D81) -> 180000 | E82: =SUM(E80:E81) -> 360000 | F82: 540000 | G82: 720000 | H82: 900000
A84: Opening Accumulated Amortization | E84: =D87 -> 6000 | F84: =E87 -> 24000 | G84: =F87 -> 54000 | H84: =G87 -> 96000
A85: Current Year Amortization (before additions) | E85: =IF(ISERROR(E80/$C$79), 0, E80/$C$79) -> 12000 | F85: =IF(ISERROR(F80/$C$79), 0, F80/$C$79) -> 24000 | G85: =IF(ISERROR(G80/$C$79), 0, G80/$C$79) -> 36000 | H85: =IF(ISERROR(H80/$C$79), 0, H80/$C$79) -> 48000
A86: Additions (half year) | D86: =D81/C79/2 -> 6000 | E86: =E81/C79/2 -> 6000 | F86: =F81/C79/2 -> 6000 | G86: =G81/C79/2 -> 6000 | H86: =H81/C79/2 -> 6000
A87: Closing Accumulated Amortization | D87: =SUM(D84+D86) -> 6000 | E87: =SUM(E84:E86) -> 24000 | F87: =SUM(F84:F86) -> 54000 | G87: =SUM(G84:G86) -> 96000 | H87: =SUM(H84:H86) -> 150000
A89: Opening Net Fixed Assets | D89: =D80-D84 -> 0 | E89: =D90 -> 174000 | F89: =E90 -> 336000 | G89: =F90 -> 486000 | H89: =G90 -> 624000
A90: Closing Net Fixed Assets | D90: =D82-D87 -> 174000 | E90: =E82-E87 -> 336000 | F90: =F82-F87 -> 486000 | G90: =G82-G87 -> 624000 | H90: =H82-H87 -> 750000
A91: Average Net Fixed Assets | D91: =SUM(D89:D90)/2 -> 87000 | E91: =SUM(E89:E90)/2 -> 255000 | F91: =SUM(F89:F90)/2 -> 411000 | G91: =SUM(G89:G90)/2 -> 555000 | H91: =SUM(H89:H90)/2 -> 687000
A93: UCC for PILs Calculation
D94: 2015 | E94: 2016 | F94: 2017 | G94: 2018 | H94: 2019
A96: Opening UCC | E96: =D104 -> 172800 | F96: =E104 -> 331776 | G96: =F104 -> 478033.92 | H96: =G104 -> 612591.2064
A97: Capital Additions (from Appendix 2-FA) | D97: =D81 -> 180000 | E97: =E81 -> 180000 | F97: =F81 -> 180000 | G97: 180000 | H97: 180000
A98: UCC Before Half Year Rule | D98: =SUM(D96:D97) -> 180000 | E98: =SUM(E96:E97) -> 352800 | F98: =SUM(F96:F97) -> 511776 | G98: =SUM(G96:G97) -> 658033.92 | H98: =SUM(H96:H97) -> 792591.2064
A99: Half Year Rule (1/2 Additions - Disposals) | D99: =D97/2 -> 90000 | E99: =E97/2 -> 90000 | F99: =F97/2 -> 90000 | G99: =G97/2 -> 90000 | H99: =H97/2 -> 90000
A100: Reduced UCC | D100: =D98-D99 -> 90000 | E100: =E98-E99 -> 262800 | F100: =F98-F99 -> 421776 | G100: =G98-G99 -> 568033.92 | H100: =H98-H99 -> 702591.2064
A101: CCA Rate Class (to be entered) | C101: 47 | D101: =C101 -> 47 | E101: =C101 -> 47 | F101: =C101 -> 47 | G101: =C101 -> 47 | H101: =C101 -> 47
A102: CCA Rate (to be entered) | C102: 0.08 | D102: =C102 -> 0.08 | E102: =C102 -> 0.08 | F102: =C102 -> 0.08 | G102: =C102 -> 0.08 | H102: =C102 -> 0.08
A103: CCA | D103: =D100*D102 -> 7200 | E103: =E100*E102 -> 21024 | F103: 33742.08 | G103: 45442.7136 | H103: =H100*H102 -> 56207.29651
A104: Closing UCC | D104: =D98-D103 -> 172800 | E104: =E98-E103 -> 331776 | F104: =F98-F103 -> 478033.92 | G104: =G98-G103 -> 612591.2064 | H104: =H98-H103 -> 736383.9099

Sheet App.2-FC Calc of REG Expansion
Q1: File Number: | R1: EB-2014-0083
Q2: Exhibit: | R2: 2
Q3: Tab: | R3: 7
Q4: Schedule: | R4: 1
Q5: Page: | R5: 1 of 2
Q7: Date: | R7: 2014-04-25
A9: Appendix 2-FC
A10: Calculation of Renewable Generation Connection Direct Benefits/Provincial Amount: Renewable Expansion Investments
A12: This table will calculate the distributor/provincial shares of the investments entered in Part B of Appendix 2-FA.
A13: Enter values in green shaded cells: WCA percentage, debt percentages, interest rates, kWh, tax rates, amortization period, CCA Class and percentage.
A14: Rate Riders are not calculated for Test Year as these assets and costs are already in the distributors rate base.
D17: 2015 Test Year | G17: 2016 | J17: 2017 | K17: 2016 | M17: 2018 | P17: 2019
E18: Direct Benefit | F18: Provincial | H18: Direct Benefit | I18: Provincial | K18: Direct Benefit | L18: Provincial | N18: Direct Benefit | O18: Provincial | Q18: Direct Benefit | R18: Provincial
D19: Total | E19: 0.17 | F19: 0.83 | G19: Total | H19: 0.17 | I19: 0.83 | J19: Total | K19: 0.17 | L19: 0.83 | M19: Total | N19: 0.17 | O19: 0.83 | P19: Total | Q19: 0.17 | R19: 0.83
A20: Net Fixed Assets (average) | D20: =D89 -> 48416.66667 | E20: =D20*E19 -> 8230.833333 | F20: =D20*F19 -> 40185.83333 | G20: =E89 -> 130250 | H20: =G20*H19 -> 22142.5 | I20: =G20*I19 -> 108107.5 | J20: =F89 -> 197238.0952 | K20: =J20*K19 -> 33530.47619 | L20: =J20*L19 -> 163707.619 | M20: =G89 -> 264511.9048 | N20: =M20*N19 -> 44967.02381 | O20: =M20*O19 -> 219544.881 | P20: =H89 -> 332023.8095 | Q20: =P20*Q19 -> 56444.04762 | R20: =P20*R19 -> 275579.7619
A21: Incremental OM&A (on-going, N/A for Provincial Recovery) | D21: ='App.2-FA Proposed REG Invest.'!C103 -> 0 | E21: =D21 -> 0 | G21: ='App.2-FA Proposed REG Invest.'!D103 -> 0 | H21: =G21 -> 0 | J21: ='App.2-FA Proposed REG Invest.'!E103 -> 0 | K21: =J21 -> 0 | M21: ='App.2-FA Proposed REG Invest.'!F103 -> 0 | N21: =M21 -> 0 | P21: ='App.2-FA Proposed REG Invest.'!G103 -> 0 | Q21: =P21 -> 0
A22: Incremental OM&A (start-up, applicable for Provincial Recovery) | D22: ='App.2-FA Proposed REG Invest.'!C102 -> 9800 | E22: =D22*E19 -> 1666 | F22: =D22*F19 -> 8134 | G22: ='App.2-FA Proposed REG Invest.'!D102 -> 7000 | H22: =G22*H19 -> 1190 | I22: =G22*I19 -> 5810 | J22: ='App.2-FA Proposed REG Invest.'!E102 -> 7200 | K22: =J22*K19 -> 1224 | L22: =J22*L19 -> 5976 | M22: ='App.2-FA Proposed REG Invest.'!F102 -> 7400 | N22: =M22*N19 -> 1258 | O22: =M22*O19 -> 6142 | P22: ='App.2-FA Proposed REG Invest.'!G102 -> 7600 | Q22: =P22*Q19 -> 1292 | R22: =P22*R19 -> 6308
A23: WCA | B23: 0.13 | E23: =(E21+E22)*$B$23 -> 216.58 | F23: =F22*$B$23 -> 1057.42 | H23: =(H21+H22)*$B$23 -> 154.7 | I23: =I22*$B$23 -> 755.3 | K23: =(K21+K22)*$B$23 -> 159.12 | L23: =L22*$B$23 -> 776.88 | N23: =(N21+N22)*$B$23 -> 163.54 | O23: =O22*$B$23 -> 798.46 | Q23: =(Q21+Q22)*$B$23 -> 167.96 | R23: =R22*$B$23 -> 820.04
A24: Rate Base | E24: =SUM(E20+E23) -> 8447.413333 | F24: =SUM(F20+F23) -> 41243.25333 | H24: =SUM(H20+H23) -> 22297.2 | I24: =SUM(I20+I23) -> 108862.8 | K24: =SUM(K20+K23) -> 33689.59619 | L24: =SUM(L20+L23) -> 164484.499 | N24: =SUM(N20+N23) -> 45130.56381 | O24: =SUM(O20+O23) -> 220343.341 | Q24: =SUM(Q20+Q23) -> 56612.00762 | R24: =SUM(R20+R23) -> 276399.8019
A27: Deemed ST Debt | B27: 0.04 | E27: =E24*$B$27 -> 337.8965333 | F27: =F24*$B$27 -> 1649.730133 | H27: =H24*$B$27 -> 891.888 | I27: =I24*$B$27 -> 4354.512 | K27: =K24*$B$27 -> 1347.583848 | L27: =L24*$B$27 -> 6579.379962 | N27: =N24*$B$27 -> 1805.222552 | O27: =O24*$B$27 -> 8813.733638 | Q27: =Q24*$B$27 -> 2264.480305 | R27: =R24*$B$27 -> 11055.99208
A28: Deemed LT Debt | B28: 0.56 | E28: =E24*$B$28 -> 4730.551467 | F28: =F24*$B$28 -> 23096.22187 | H28: =H24*$B$28 -> 12486.432 | I28: =I24*$B$28 -> 60963.168 | K28: =K24*$B$28 -> 18866.17387 | L28: =L24*$B$28 -> 92111.31947 | N28: =N24*$B$28 -> 25273.11573 | O28: =O24*$B$28 -> 123392.2709 | Q28: =Q24*$B$28 -> 31702.72427 | R28: =R24*$B$28 -> 154783.8891
A29: Deemed Equity | B29: 0.4 | E29: =E24*$B$29 -> 3378.965333 | F29: =F24*$B$29 -> 16497.30133 | H29: =H24*$B$29 -> 8918.88 | I29: =I24*$B$29 -> 43545.12 | K29: =K24*$B$29 -> 13475.83848 | L29: =L24*$B$29 -> 65793.79962 | N29: =N24*$B$29 -> 18052.22552 | O29: =O24*$B$29 -> 88137.33638 | Q29: =Q24*$B$29 -> 22644.80305 | R29: =R24*$B$29 -> 110559.9208
A31: ST Interest | B31: 0.0211 | E31: =E27*$B$31 -> 7.129616853 | F31: =F27*$B$31 -> 34.80930581 | H31: =H27*$B$31 -> 18.8188368 | I31: =I27*$B$31 -> 91.8802032 | K31: =K27*$B$31 -> 28.43401918 | L31: =L27*$B$31 -> 138.8249172 | N31: =N27*$B$31 -> 38.09019586 | O31: =O27*$B$31 -> 185.9697798 | Q31: =Q27*$B$31 -> 47.78053443 | R31: =R27*$B$31 -> 233.2814328
A32: LT Interest | B32: 0.06115320665 | E32: =E28*$B$32 -> 289.2883914 | F32: =F28*$B$32 -> 1412.408029 | H32: =H28*$B$32 -> 763.5853564 | I32: =I28*$B$32 -> 3728.093211 | K32: =K28*$B$32 -> 1153.727029 | L32: =L28*$B$32 -> 5632.902554 | N32: =N28*$B$32 -> 1545.532069 | O32: =O28*$B$32 -> 7545.833044 | Q32: =Q28*$B$32 -> 1938.723248 | R32: =R28*$B$32 -> 9465.531154
A33: ROE | B33: 0.0971 | E33: =E29*$B$33 -> 328.0975339 | F33: =F29*$B$33 -> 1601.887959 | H33: =H29*$B$33 -> 866.023248 | I33: =I29*$B$33 -> 4228.231152 | K33: =K29*$B$33 -> 1308.503916 | L33: =L29*$B$33 -> 6388.577943 | N33: =N29*$B$33 -> 1752.871098 | O33: =O29*$B$33 -> 8558.135363 | Q33: =Q29*$B$33 -> 2198.810376 | R33: =R29*$B$33 -> 10735.36831
A34: Cost of Capital Total | E34: =SUM(E31:E33) -> 624.5155421 | F34: =SUM(F31:F33) -> 3049.105294 | H34: =SUM(H31:H33) -> 1648.427441 | I34: =SUM(I31:I33) -> 8048.204566 | K34: =SUM(K31:K33) -> 2490.664964 | L34: =SUM(L31:L33) -> 12160.30541 | N34: =SUM(N31:N33) -> 3336.493363 | O34: =SUM(O31:O33) -> 16289.93819 | Q34: =SUM(Q31:Q33) -> 4185.314159 | R34: =SUM(R31:R33) -> 20434.18089
A36: OM&A | E36: =E21+E22 -> 1666 | F36: =F22 -> 8134 | H36: =H21+H22 -> 1190 | I36: =I22 -> 5810 | K36: =K21+K22 -> 1224 | L36: =L22 -> 5976 | N36: =N21+N22 -> 1258 | O36: =O22 -> 6142 | Q36: =Q21+Q22 -> 1292 | R36: =R22 -> 6308
A37: Amortization | D37: =D85 -> 1166.666667 | E37: =D37*E$19 -> 198.3333333 | F37: =D37*F$19 -> 968.3333333 | G37: =E83+E84 -> 3166.666667 | H37: =G37*H$19 -> 538.3333333 | I37: =G37*I$19 -> 2628.333333 | J37: =F83+F84 -> 4857.142857 | K37: =J37*K$19 -> 825.7142857 | L37: =J37*L$19 -> 4031.428571 | M37: =G83+G84 -> 6595.238095 | N37: =M37*N$19 -> 1121.190476 | O37: =M37*O$19 -> 5474.047619 | P37: =H83+H84 -> 8380.952381 | Q37: =P37*Q$19 -> 1424.761905 | R37: =P37*R$19 -> 6956.190476
A38: Grossed-up PILs | E38: =E63 -> -50.46506149 | F38: =F63 -> -246.3882414 | H38: =H63 -> -126.5984026 | I38: =I63 -> -618.0980835 | K38: =K63 -> -160.9580285 | L38: =L63 -> -785.8539038 | N38: =N63 -> -177.7250329 | O38: =O63 -> -867.7163372 | Q38: =Q63 -> -178.1322786 | R38: =R63 -> -869.7046542
A40: Revenue Requirement | E40: =SUM(E34:E38) -> 2438.383814 | F40: =SUM(F34:F38) -> 11905.05039 | H40: =SUM(H34:H38) -> 3250.162372 | I40: =SUM(I34:I38) -> 15868.43982 | K40: =SUM(K34:K38) -> 4379.421222 | L40: =SUM(L34:L38) -> 21381.88008 | N40: =SUM(N34:N38) -> 5537.958807 | O40: =SUM(O34:O38) -> 27038.26947 | Q40: =SUM(Q34:Q38) -> 6723.943785 | R40: =SUM(R34:R38) -> 32828.66672
A43: Provincial Rate Protection | F43: =F40 -> 11905.05039 | I43: =I40 -> 15868.43982 | L43: =L40 -> 21381.88008 | O43: =O40 -> 27038.26947 | R43: =R40 -> 32828.66672
A45: Monthly Amount Paid by IESO | F45: =F43/12 -> 992.0875322 | I45: =I43/12 -> 1322.369985 | L45: =L43/12 -> 1781.82334 | O45: =O43/12 -> 2253.189122 | R45: =R43/12 -> 2735.722226
A47: Note 1: The difference between the actual costs of approved eligible investments and revenue received from the IESO should be recorded in a variance account. The Board may provide regulatory accounting guidance regarding a variance account either in an individual proceeding or on a generic basis.
A48: Note 2: For the 2014 Test Year, Costs and Revenues of the Direct Benefit are to be included in the test year applicant Rate Base and Revenues.
A50: PILs Calculation
E51: 2015 | H51: 2016 | K51: 2017 | N51: 2018 | Q51: 2019
A52: Income Tax | E52: Direct Benefit | F52: Provincial | H52: Direct Benefit | I52: Provincial | K52: Direct Benefit | L52: Provincial | N52: Direct Benefit | O52: Provincial | Q52: Direct Benefit | R52: Provincial
M53: Total | P53: Total
A54: Net Income - ROE on Rate Base | E54: =E33 -> 328.0975339 | F54: =F33 -> 1601.887959 | H54: =H33 -> 866.023248 | I54: =I33 -> 4228.231152 | K54: =K33 -> 1308.503916 | L54: =L33 -> 6388.577943 | N54: =N33 -> 1752.871098 | O54: =O33 -> 8558.135363 | Q54: =Q33 -> 2198.810376 | R54: =R33 -> 10735.36831
A55: Amortization (17% DB and 83% P) | E55: =E37 -> 198.3333333 | F55: =F37 -> 968.3333333 | H55: =H37 -> 538.3333333 | I55: =I37 -> 2628.333333 | K55: =K37 -> 825.7142857 | L55: =L37 -> 4031.428571 | N55: =N37 -> 1121.190476 | O55: =O37 -> 5474.047619 | Q55: =Q37 -> 1424.761905 | R55: =R37 -> 6956.190476
A56: CCA (17% DB and 83% P) | E56: =-D101*E$19 -> -666.4 | F56: =-D101*F$19 -> -3253.6 | H56: =-E101*H$19 -> -1755.488 | I56: =-E101*I$19 -> -8570.912 | K56: =-F101*K$19 -> -2580.64896 | L56: =-F101*L$19 -> -12599.63904 | N56: =-G101*N$19 -> -3366.997043 | O56: =-G101*O$19 -> -16438.86792 | Q56: =-H101*Q$19 -> -4117.63728 | R56: =-H101*R$19 -> -20103.75848
A57: Taxable income | E57: =SUM(E54:E56) -> -139.9691328 | F57: =SUM(F54:F56) -> -683.3787072 | H57: =SUM(H54:H56) -> -351.1314187 | I57: =SUM(I54:I56) -> -1714.347515 | K57: =SUM(K54:K56) -> -446.4307582 | L57: =SUM(L54:L56) -> -2179.632526 | N57: =SUM(N54:N56) -> -492.9354686 | O57: =SUM(O54:O56) -> -2406.684935 | Q57: =SUM(Q54:Q56) -> -494.0649991 | R57: =SUM(R54:R56) -> -2412.199701
A59: Tax Rate (to be entered) | E59: 0.265 | F59: 0.265 | H59: 0.265 | I59: 0.265 | K59: 0.265 | L59: 0.265 | N59: 0.265 | O59: 0.265 | Q59: 0.265 | R59: 0.265
A60: Income Taxes Payable | E60: =E57*E59 -> -37.09182019 | F60: =F57*F59 -> -181.0953574 | H60: =H57*H59 -> -93.04982595 | I60: =I57*I59 -> -454.3020914 | K60: =K57*K59 -> -118.3041509 | L60: =L57*L59 -> -577.6026193 | N60: =N57*N59 -> -130.6278992 | O60: =O57*O59 -> -637.7715078 | Q60: =Q57*Q59 -> -130.9272248 | R60: =R57*R59 -> -639.2329208
A61: Gross Up
A62: Income Taxes Payable | E62: =E60/(1-E59) -> -50.46506149 | F62: =F60/(1-F59) -> -246.3882414 | H62: =H60/(1-H59) -> -126.5984026 | I62: =I60/(1-I59) -> -618.0980835 | K62: =K60/(1-K59) -> -160.9580285 | L62: =L60/(1-L59) -> -785.8539038 | N62: =N60/(1-N59) -> -177.7250329 | O62: =O60/(1-O59) -> -867.7163372 | Q62: =Q60/(1-Q59) -> -178.1322786 | R62: =R60/(1-R59) -> -869.7046542
A63: Grossed Up PILs | E63: =SUM(E62:E62) -> -50.46506149 | F63: =SUM(F62:F62) -> -246.3882414 | H63: =SUM(H62:H62) -> -126.5984026 | I63: =SUM(I62:I62) -> -618.0980835 | K63: =SUM(K62:K62) -> -160.9580285 | L63: =SUM(L62:L62) -> -785.8539038 | N63: =SUM(N62:N62) -> -177.7250329 | O63: =SUM(O62:O62) -> -867.7163372 | Q63: =SUM(Q62:Q62) -> -178.1322786 | R63: =SUM(R62:R62) -> -869.7046542
Q66: File Number: | R66: EB-2014-0083
Q67: Exhibit: | R67: 2
Q68: Tab: | R68: 7
Q69: Schedule: | R69: 1
Q70: Page: | R70: 2 of 2
Q72: Date: | R72: 2014-04-25
A74: Appendix 2-FC
A75: Calculation of Renewable Generation Connection Direct Benefits/Provincial Amount: Renewable Expansion Investments
A76: Net Fixed Assets | D76: 2015 | E76: 2016 | F76: 2017 | G76: 2018 | H76: 2019
B77: Enter applicable amortization in years: | C77: 42
A78: Opening Gross Fixed Assets | E78: =D80 -> 98000 | F78: =E80 -> 168000 | G78: =F80 -> 240000 | H78: =G80 -> 314000
A79: Gross Capital Additions | D79: ='App.2-FA Proposed REG Invest.'!C101 -> 98000 | E79: ='App.2-FA Proposed REG Invest.'!D101 -> 70000 | F79: ='App.2-FA Proposed REG Invest.'!E101 -> 72000 | G79: ='App.2-FA Proposed REG Invest.'!F101 -> 74000 | H79: ='App.2-FA Proposed REG Invest.'!G101 -> 76000
A80: Closing Gross Fixed Assets | D80: =SUM(D78:D79) -> 98000 | E80: =SUM(E78:E79) -> 168000 | F80: =SUM(F78:F79) -> 240000 | G80: =SUM(G78:G79) -> 314000 | H80: =SUM(H78:H79) -> 390000
A82: Opening Accumulated Amortization | E82: =D85 -> 1166.666667 | F82: =E85 -> 4333.333333 | G82: =F85 -> 9190.47619 | H82: =G85 -> 15785.71429
A83: Current Year Amortization (before additions) | E83: =E78/$C$77 -> 2333.333333 | F83: =F78/$C$77 -> 4000 | G83: =G78/$C$77 -> 5714.285714 | H83: =H78/$C$77 -> 7476.190476
A84: Additions (half year) | D84: =D79/C77/2 -> 1166.666667 | E84: =E79/C77/2 -> 833.3333333 | F84: =F79/C77/2 -> 857.1428571 | G84: =G79/C77/2 -> 880.952381 | H84: =H79/C77/2 -> 904.7619048
A85: Closing Accumulated Amortization | D85: =SUM(D82+D84) -> 1166.666667 | E85: =SUM(E82:E84) -> 4333.333333 | F85: =SUM(F82:F84) -> 9190.47619 | G85: =SUM(G82:G84) -> 15785.71429 | H85: =SUM(H82:H84) -> 24166.66667
A87: Opening Net Fixed Assets | D87: =D78-D82 -> 0 | E87: =D88 -> 96833.33333 | F87: =E88 -> 163666.6667 | G87: =F88 -> 230809.5238 | H87: =G88 -> 298214.2857
A88: Closing Net Fixed Assets | D88: =D80-D85 -> 96833.33333 | E88: =E80-E85 -> 163666.6667 | F88: =F80-F85 -> 230809.5238 | G88: =G80-G85 -> 298214.2857 | H88: =H80-H85 -> 365833.3333
A89: Average Net Fixed Assets | D89: =SUM(D87:D88)/2 -> 48416.66667 | E89: =SUM(E87:E88)/2 -> 130250 | F89: =SUM(F87:F88)/2 -> 197238.0952 | G89: =SUM(G87:G88)/2 -> 264511.9048 | H89: =SUM(H87:H88)/2 -> 332023.8095
A91: UCC for PILs Calculation
D92: 2015 | E92: 2016 | F92: 2017 | G92: 2018 | H92: 2019
A94: Opening UCC | E94: =D102 -> 94080 | F94: =E102 -> 153753.6 | G94: =F102 -> 210573.312 | H94: =G102 -> 264767.447
A95: Capital Additions (from Appendix 2-FA) | D95: =D79 -> 98000 | E95: =E79 -> 70000 | F95: =F79 -> 72000 | G95: =G79 -> 74000 | H95: =H79 -> 76000
A96: UCC Before Half Year Rule | D96: =SUM(D94:D95) -> 98000 | E96: =SUM(E94:E95) -> 164080 | F96: =SUM(F94:F95) -> 225753.6 | G96: =SUM(G94:G95) -> 284573.312 | H96: =SUM(H94:H95) -> 340767.447
A97: Half Year Rule (1/2 Additions - Disposals) | D97: =D95/2 -> 49000 | E97: =E95/2 -> 35000 | F97: =F95/2 -> 36000 | G97: =G95/2 -> 37000 | H97: =H95/2 -> 38000
A98: Reduced UCC | D98: =D96-D97 -> 49000 | E98: =E96-E97 -> 129080 | F98: =F96-F97 -> 189753.6 | G98: =G96-G97 -> 247573.312 | H98: =H96-H97 -> 302767.447
A99: CCA Rate Class (to be entered) | C99: 47 | D99: =C99 -> 47 | E99: =C99 -> 47 | F99: =C99 -> 47 | G99: =C99 -> 47 | H99: =C99 -> 47
A100: CCA Rate (to be entered) | C100: 0.08 | D100: =C100 -> 0.08 | E100: =C100 -> 0.08 | F100: =C100 -> 0.08 | G100: =C100 -> 0.08 | H100: =C100 -> 0.08
A101: CCA | D101: =D98*D$100 -> 3920 | E101: =E98*E$100 -> 10326.4 | F101: 15180.288 | G101: 19805.86496 | H101: 24221.39576
A102: Closing UCC | D102: =D96-D101 -> 94080 | E102: =E96-E101 -> 153753.6 | F102: =F96-F101 -> 210573.312 | G102: =G96-G101 -> 264767.447 | H102: =H96-H101 -> 316546.0513
